fUSD/lending_fUSD_20251220
["ID","MTS","AMOUNT","RATE_DAILY","PERIOD"]
[399297104,1766254241128,-250.0,0.00013933,2]
[399297105,1766254241137,-718.08,0.00013972,2]
[399297106,1766254241147,-255.0,0.00014018,2]
[399297107,1766254241156,-2351.0,0.00014034,2]
[399297108,1766254241167,-1600.0,0.00014107,2]
[399297109,1766254241178,-38940.33,0.00014123,2]
[399297110,1766254241190,-718.08,0.00014246,2]
[399297111,1766254241202,-15958.74155209,0.00014287,2]
[399297112,1766254241213,-25753.9663919,0.00014354,2]
[399297113,1766254241222,-1002.00400434,0.00014421,2]
[399297114,1766254241232,-1000.0,0.00014421,2]
[399297115,1766254241243,-330.71256854,0.00014421,2]
[399297116,1766254241253,-214.25,0.00014471,2]
[399297117,1766254241264,-733.1,0.00014504,2]
[399297118,1766254241274,-150.99,0.00014504,2]
[399297119,1766254241286,-2909.88,0.00014504,2]
[399297120,1766254241296,-1395.28,0.00014504,2]
[399297121,1766254241307,-9999.99,0.00014504,2]
[399297122,1766254241317,-10017.7644167,0.0001451,2]
[399297123,1766254241326,-718.08,0.0001452,2]
[399297124,1766254241338,-575.42623557,0.00014645,2]
[399297125,1766254241348,-15958.74155209,0.00014723,2]
[399297126,1766254241358,-500.0,0.00014745,2]
[399297127,1766254241367,-500.0,0.00014745,2]
[399297128,1766254241377,-500.0,0.00014745,2]
[399297129,1766254241387,-500.0,0.00014745,2]
[399297130,1766254241396,-500.0,0.00014745,2]
[399297131,1766254241407,-440.9981114,0.00014745,2]
[399297132,1766254241416,-494.16568135,0.00014745,2]
[399297133,1766254241426,-500.0,0.00014745,2]
[399297134,1766254241435,-500.0,0.00014745,2]
[399297135,1766254241446,-500.0,0.00014745,2]
[399297136,1766254241457,-500.0,0.00014745,2]
[399297137,1766254241466,-500.0,0.00014745,2]
[399297138,1766254241476,-25753.9663919,0.00014778,2]
[399297139,1766254241487,-718.08,0.00014794,2]
[399297140,1766254241497,-718.08,0.00015068,2]
[399297141,1766254241510,-13310.18,0.00015077,2]
[399297142,1766254241520,-15958.74155209,0.00015158,2]
[399297143,1766254241530,-214.25,0.0001516,2]
[399297144,1766254241540,-25753.9663919,0.00015203,2]
[399297145,1766254241550,-282.0,0.00015207,2]
[399297146,1766254241560,-150.0,0.00015288,2]
[399297147,1766254241571,-150.0,0.00015288,2]
[399297148,1766254241581,-150.0,0.00015288,2]
[399297149,1766254241590,-150.0,0.00015288,2]
[399297150,1766254241600,-150.0,0.00015288,2]
[399297151,1766254241611,-150.0,0.00015288,2]
[399297152,1766254241622,-150.0,0.00015288,2]
[399297153,1766254241631,-150.0,0.00015288,2]
[399297154,1766254241641,-150.0,0.00015288,2]
[399297155,1766254241651,-150.0,0.00015336,2]
[399297156,1766254241660,-718.08,0.00015342,2]
[399297157,1766254241670,-150.0,0.00015365,2]
[399297158,1766254241679,-150.0,0.00015382,2]
[399297159,1766254241688,-150.0,0.00015385,2]
[399297160,1766254241698,-150.0,0.00015388,2]
[399297161,1766254241707,-150.0,0.00015401,2]
[399297162,1766254241717,-150.0,0.00015433,2]
[399297163,1766254241726,-3292.0,0.00015438,2]
[399297164,1766254241735,-150.0,0.00015442,2]
[399297165,1766254241745,-150.0,0.00015476,2]
[399297166,1766254241763,-150.0,0.00015482,2]
[399297167,1766254241772,-150.0,0.00015488,2]
[399297168,1766254241782,-150.0,0.00015514,2]
[399297169,1766254241791,-150.0,0.00015519,2]
[399297170,1766254241801,-150.0,0.0001553,2]
[399297171,1766254241810,-150.0,0.00015571,2]
[399297172,1766254241820,-150.0,0.00015571,2]
[399297173,1766254241829,-150.0,0.00015579,2]
[399297174,1766254241838,-150.0,0.00015587,2]
[399297175,1766254241847,-15958.74155209,0.00015594,2]
[399297176,1766254241857,-150.0,0.00015597,2]
[399297177,1766254241866,-718.11,0.00015616,2]
[399297178,1766254241876,-25753.9663919,0.00015627,2]
[399297179,1766254241885,-150.0,0.00015627,2]
[399297180,1766254241898,-150.0,0.00015627,2]
[399297181,1766254241908,-150.0,0.00015627,2]
[399297182,1766254241918,-150.0,0.00015665,2]
[399297183,1766254241927,-150.0,0.00015674,2]
[399297184,1766254241936,-1600.0,0.00015674,2]
[399297185,1766254241947,-150.0,0.00015676,2]
[399297186,1766254241956,-150.0,0.00015687,2]
[399297187,1766254241965,-150.0,0.00015712,2]
[399297188,1766254241975,-150.0,0.00015724,2]
[399297189,1766254241985,-150.0,0.00015741,2]
[399297190,1766254241994,-150.0,0.00015751,2]
[399297191,1766254242004,-150.0,0.0001576,2]
[399297192,1766254242013,-150.0,0.00015773,2]
[399297193,1766254242022,-150.0,0.00015787,2]
[399297194,1766254242031,-171.79,0.00015817,2]
[399297195,1766254242041,-150.0,0.00015822,2]
[399297196,1766254242051,-150.0,0.00015828,2]
[399297197,1766254242060,-214.25,0.00015849,2]
[399297198,1766254242069,-150.0,0.00015854,2]
[399297199,1766254242079,-150.0,0.00015854,2]
[399297200,1766254242089,-150.0,0.00015854,2]
[399297201,1766254242099,-150.0,0.00015854,2]
[399297202,1766254242108,-4048.56264106,0.00015854,2]
[399297203,1766254242117,-279.50214594,0.00015854,2]
[399297204,1766254242126,-898.08433789,0.00015854,2]
[399297205,1766254242137,-341.16073738,0.00015854,2]
[399297206,1766254242157,-150.0,0.0001587,2]
[399297207,1766254242166,-153.20553774,0.00015876,2]
[399297208,1766254242176,-150.0,0.00015887,2]
[399297209,1766254242185,-150.0,0.00015905,2]
[399297210,1766254242196,-150.0,0.00015919,2]
[399297211,1766254242206,-150.0,0.00015948,2]
[399297212,1766254242215,-150.0,0.00015967,2]
[399297213,1766254242225,-150.0,0.00015967,2]
[399297214,1766254242237,-150.0,0.00015967,2]
[399297215,1766254242247,-150.0,0.00015983,2]
[399297216,1766254242257,-150.0,0.00015987,2]
[399297217,1766254242268,-150.0,0.00016016,2]
[399297219,1766254242277,-15958.74155209,0.00016029,2]
[399297221,1766254242288,-150.0,0.00016043,2]
[399297222,1766254242299,-25753.9663919,0.00016051,2]
[399297223,1766254242309,-150.0,0.0001606,2]
[399297224,1766254242318,-150.0,0.00016064,2]
[399297225,1766254242327,-150.0,0.0001608,2]
[399297227,1766254242337,-150.0,0.00016087,2]
[399297228,1766254242346,-150.0,0.00016113,2]
[399297229,1766254242356,-1167.11,0.00016116,2]
[399297230,1766254242365,-150.0,0.00016137,2]
[399297231,1766254242375,-150.0,0.00016137,2]
[399297232,1766254242384,-150.0,0.00016137,2]
[399297233,1766254242394,-150.0,0.00016137,2]
[399297235,1766254242403,-152.27409135,0.00016149,2]
[399297237,1766254242413,-200.0,0.00016149,2]
[399297238,1766254242422,-207.4,0.00016149,2]
[399297240,1766254242431,-215.0738,0.00016149,2]
[399297241,1766254242440,-223.0315306,0.00016149,2]
[399297242,1766254242450,-231.28369723,0.00016149,2]
[399297243,1766254242460,-239.84119403,0.00016149,2]
[399297244,1766254242471,-248.71531821,0.00016149,2]
[399297245,1766254242480,-300.0,0.00016149,2]
[399297246,1766254242489,-150.0,0.00016161,2]
[399297248,1766254242499,-150.0,0.00016187,2]
[399297250,1766254242508,-150.0,0.00016194,2]
[399297252,1766254242518,-1477.0,0.000162,2]
[399297254,1766254242527,-150.0,0.0001621,2]
[399297255,1766254242537,-150.0,0.00016214,2]
[399297256,1766254242548,-150.0,0.00016231,2]
[399297257,1766254242557,-150.0,0.00016258,2]
[399297258,1766254242567,-150.0,0.00016287,2]
[399297259,1766254242576,-150.0,0.00016291,2]
[399297260,1766254242586,-150.0,0.00016307,2]
[399297261,1766254242596,-150.0,0.00016307,2]
[399297262,1766254242606,-150.0,0.00016307,2]
[399297263,1766254242616,-3911.34,0.00016312,2]
[399297264,1766254242627,-150.0,0.00016326,2]
[399297265,1766254242636,-177.408,0.00016328,2]
[399297266,1766254242646,-161.045,0.00016328,2]
[399297267,1766254242655,-1327.562,0.00016328,2]
[399297268,1766254242665,-615.844,0.00016328,2]
[399297269,1766254242676,-1643.057,0.00016328,2]
[399297270,1766254242686,-3455.0,0.00016328,2]
[399297271,1766254242695,-1262.0,0.00016328,2]
[399297272,1766254242705,-518.0,0.00016328,2]
[399297273,1766254242714,-1197.0,0.00016328,2]
[399297274,1766254242724,-911.0,0.00016328,2]
[399297275,1766254242734,-4802.0,0.00016328,2]
[399297276,1766254242743,-2428.0,0.00016328,2]
[399297277,1766254242752,-564.0,0.00016328,2]
[399297278,1766254242762,-677.0,0.00016339,2]
[399297279,1766254242772,-150.0,0.00016355,2]
[399297280,1766254242781,-150.0,0.00016369,2]
[399297281,1766254242791,-150.0,0.00016387,2]
[399297282,1766254242800,-677.0,0.00016402,2]
[399297283,1766254242810,-150.0,0.00016404,2]
[399297284,1766254242820,-150.0,0.0001642,2]
[399297285,1766254242830,-150.0,0.0001642,2]
[399297286,1766254242840,-150.0,0.0001642,2]
[399297287,1766254242849,-150.0,0.0001642,2]
[399297288,1766254242858,-677.0,0.00016421,2]
[399297289,1766254242867,-2000.0,0.00016438,2]
[399297290,1766254242877,-2000.0,0.00016438,2]
[399297291,1766254242889,-2000.0,0.00016438,2]
[399297292,1766254242901,-2000.0,0.00016438,2]
[399297293,1766254242910,-2000.0,0.00016438,2]
[399297294,1766254242920,-8542.5,0.00016438,2]
[399297295,1766254242932,-500.0,0.00016438,2]
[399297296,1766254242942,-500.0,0.00016438,2]
[399297297,1766254242952,-500.0,0.00016438,2]
[399297298,1766254242962,-500.0,0.00016438,2]
[399297299,1766254242974,-500.0,0.00016438,2]
[399297301,1766254242985,-627.60424824,0.00016438,2]
[399297303,1766254242994,-500.0,0.00016438,2]
[399297305,1766254243003,-500.0,0.00016438,2]
[399297306,1766254243012,-500.0,0.00016438,2]
[399297307,1766254243021,-500.0,0.00016438,2]
[399297309,1766254243031,-500.0,0.00016438,2]
[399297310,1766254243040,-500.0,0.00016438,2]
[399297312,1766254243050,-500.0,0.00016438,2]
[399297313,1766254243060,-500.0,0.00016438,2]
[399297314,1766254243070,-10843.4,0.00016438,2]
[399297315,1766254243079,-235.76832595,0.00016438,2]
[399297316,1766254243088,-150.0,0.00016446,2]
[399297317,1766254243098,-150.0,0.00016452,2]
[399297318,1766254243107,-15958.74155209,0.00016465,2]
[399297319,1766254243116,-25753.9663919,0.00016476,2]
[399297320,1766254243126,-150.0,0.00016487,2]
[399297321,1766254243135,-150.0,0.00016501,2]
[399297322,1766254243144,-150.0,0.00016514,2]
[399297323,1766254243152,-150.0,0.00016523,2]
[399297324,1766254243163,-150.0,0.00016533,2]
[399297325,1766254243174,-214.25,0.00016538,2]
[399297326,1766254243184,-677.0,0.00016548,2]
[399297327,1766254243195,-150.0,0.0001655,2]
[399297328,1766254243204,-150.0,0.00016562,2]
[399297329,1766254243214,-677.0,0.00016568,2]
[399297330,1766254243223,-1074.5317107,0.00016574,2]
[399297331,1766254243234,-467.58230881,0.00016574,2]
[399297332,1766254243243,-150.0,0.00016587,2]
[399297333,1766254243252,-150.0,0.00016598,2]
[399297334,1766254243261,-150.0,0.000166,2]
[399297335,1766254243271,-150.0,0.00016609,2]
[399297336,1766254243282,-150.0,0.00016647,2]
[399297337,1766254243291,-150.0,0.00016647,2]
[399297338,1766254243300,-150.0,0.00016647,2]
[399297339,1766254243309,-150.0,0.00016677,2]
[399297340,1766254243319,-150.0,0.00016687,2]
[399297341,1766254243329,-150.0,0.00016695,2]
[399297342,1766254243339,-150.0,0.00016703,2]
[399297343,1766254243348,-150.0,0.00016703,2]
[399297344,1766254243357,-4000.0,0.00016712,2]
[399297345,1766254243367,-150.0,0.00016744,2]
[399297346,1766254243377,-150.0,0.00016755,2]
[399297347,1766254243386,-677.0,0.00016755,2]
[399297348,1766254243395,-150.0,0.0001676,2]
[399297349,1766254243405,-1341.0,0.00016777,2]
[399297350,1766254243414,-286.55,0.00016783,2]
[399297351,1766254243423,-150.0,0.00016786,2]
[399297352,1766254243434,-150.0,0.00016792,2]
[399297353,1766254243443,-150.0,0.00016798,2]
[399297354,1766254243452,-280.09,0.00016802,2]
[399297355,1766254243461,-150.0,0.00016832,2]
[399297356,1766254243471,-150.0,0.00016841,2]
[399297357,1766254243480,-200.0,0.00016864,2]
[399297358,1766254243489,-677.0,0.00016866,2]
[399297359,1766254243499,-150.0,0.00016873,2]
[399297360,1766254243508,-150.0,0.00016886,2]
[399297361,1766254243517,-150.0,0.00016889,2]
[399297362,1766254243527,-150.0,0.00016892,2]
[399297363,1766254243537,-500.0,0.00016899,2]
[399297364,1766254243547,-500.0,0.00016899,2]
[399297365,1766254243556,-262.5113253,0.00016899,2]
[399297366,1766254243566,-500.0,0.00016899,2]
[399297367,1766254243576,-582.90773585,0.00016899,2]
[399297368,1766254243766,-500.0,0.00016899,2]
[399297369,1766254243776,-500.0,0.00016899,2]
[399297370,1766254243786,-500.0,0.00016899,2]
[399297371,1766254243796,-500.0,0.00016899,2]
[399297372,1766254243805,-207.92011621,0.000169,2]
[399297373,1766254243815,-1000.0,0.000169,2]
[399297374,1766254243824,-10000.0,0.000169,2]
[399297375,1766254243833,-25753.9663919,0.000169,2]
[399297376,1766254243842,-15958.74155209,0.000169,2]
[399297377,1766254243852,-692.97788872,0.000169,2]
[399297378,1766254243861,-4213.62818936,0.000169,2]
[399297379,1766254243871,-853.46645514,0.000169,2]
[399297380,1766254243880,-404.31061865,0.000169,2]
[399297381,1766254243893,-8622.0,0.000169,2]
[399297382,1766254243903,-677.0,0.00016903,2]
[399297383,1766254243911,-150.0,0.00016909,2]
[399297384,1766254243921,-1341.0,0.00016915,2]
[399297385,1766254243930,-677.0,0.00016937,2]
[399297386,1766254243939,-150.0,0.00016938,2]
[399297387,1766254243949,-1341.0,0.00016961,2]
[399297388,1766254243958,-308.61264672,0.00016973,2]
[399297389,1766254243967,-500.0,0.00016973,2]
[399297390,1766254243976,-162.03877535,0.00016973,2]
[399297391,1766254243985,-500.0,0.00016973,2]
[399297392,1766254243994,-198.63978603,0.00016973,2]
[399297393,1766254244003,-160.176,0.00016973,2]
[399297394,1766254244012,-500.0,0.00016973,2]
[399297395,1766254244021,-160.176,0.00016973,2]
[399297396,1766254244030,-500.0,0.00016973,2]
[399297397,1766254244039,-395.24069311,0.00016973,2]
[399297398,1766254244048,-159.43095819,0.00016973,2]
[399297399,1766254244057,-500.0,0.00016973,2]
[399297400,1766254244066,-500.0,0.00016973,2]
[399297401,1766254244075,-2610.0,0.00016981,2]
[399297402,1766254244084,-217.8076658,0.00016983,2]
[399297403,1766254244093,-500.0,0.00016983,2]
[399297404,1766254244102,-3869.93544157,0.00016986,2]
[399297405,1766254244111,-150.00000001,0.00016986,2]
[399297406,1766254244121,-150.0,0.00016986,2]
[399297407,1766254244131,-150.0,0.00016986,2]
[399297408,1766254244140,-150.00000001,0.00016986,2]
[399297409,1766254244149,-150.0,0.00016986,2]
[399297410,1766254244160,-150.0,0.00016986,2]
[399297411,1766254244170,-150.0,0.00016986,2]
[399297412,1766254244180,-150.0,0.00016986,2]
[399297413,1766254244189,-153.06730128,0.00016986,2]
[399297414,1766254244198,-500.0,0.0001699,2]
[399297415,1766254244208,-506.44561835,0.0001699,2]
[399297416,1766254244218,-500.0,0.0001699,2]
[399297417,1766254244227,-500.0,0.0001699,2]
[399297418,1766254244236,-1382.99743047,0.0001699,2]
[399297419,1766254244245,-1382.99743047,0.0001699,2]
[399297420,1766254244255,-151.0,0.00016996,2]
[399297421,1766254244265,-151.0,0.00016997,2]
[399297422,1766254244275,-1194.29389268,0.00016998,5]
[399297423,1766254244285,-500.0,0.00016999,2]
[399297424,1766254244295,-500.0,0.00016999,2]
[399297425,1766254244305,-500.0,0.00016999,2]
[399297426,1766254244314,-500.0,0.00016999,2]
[399297427,1766254244323,-585.19054357,0.00016999,2]
[399297428,1766254244334,-8066.2479687,0.00016999,2]
[399297429,1766254244344,-369276.5721194,0.00016999,2]
[399297430,1766254244355,-2804.0417638,0.00016999,2]
[399297431,1766254244364,-89934.2957344,0.00016999,2]
[399297432,1766254244374,-95196.7347772,0.00016999,2]
[399297433,1766254244383,-2802.2229504,0.00016999,2]
[399297434,1766254244393,-500.0,0.00016999,2]
[399297435,1766254244402,-500.0,0.00016999,2]
[399297436,1766254244411,-500.0,0.00016999,2]
[399297437,1766254244420,-500.0,0.00016999,2]
[399297438,1766254244429,-500.0,0.00016999,2]
[399297439,1766254244438,-583.71714779,0.00016999,2]
[399297440,1766254244449,-300.0,0.00016999,2]
[399297441,1766254244460,-1756299.97110588,0.00017,2]
[399297442,1766254244478,-2783910.84480378,0.00017,2]
[399297443,1766254244488,-138619.17829482,0.00017,2]
[399297444,1766254244497,-250.0,0.00017,2]
[399297445,1766254244507,-150.0,0.00017,2]
[399297446,1766254244515,-2823.0926238,0.00017,2]
[399297447,1766254244524,-151.0,0.00017,2]
[399297448,1766254244534,-326.287178,0.00017,2]
[399297449,1766254244544,-326.287178,0.00017,2]
[399297450,1766254244554,-326.287178,0.00017,2]
[399297451,1766254244564,-326.287178,0.00017,2]
[399297452,1766254244573,-654.0,0.00017015,2]
[399297453,1766254244582,-186.70911285,0.00017042,2]
[399297454,1766254244592,-654.0,0.00017112,2]
[399297455,1766254244602,-200.0,0.00017174,2]
[399297456,1766254244613,-214.25,0.00017227,2]
[399297457,1766254244622,-1600.0,0.00017242,2]
[399297458,1766254244632,-166.67,0.00017327,2]
[399297459,1766254244641,-166.66,0.00017342,2]
[399297460,1766254244652,-654.0,0.0001735,2]
[399297461,1766254244661,-257.91778498,0.00017518,2]
[399297462,1766254244670,-311.1,0.00017518,2]
[399297463,1766254244680,-501.0,0.00017521,2]
[399297464,1766254244690,-691.6701968,0.00017521,2]
[399297465,1766254244699,-1000.0,0.00017521,2]
[399297466,1766254244709,-1000.0,0.00017634,2]
[399297467,1766254244718,-654.0,0.00017651,2]
[399297468,1766254244728,-654.0,0.00017673,2]
[399297469,1766254244737,-8542.5,0.00017725,2]
[399297470,1766254244746,-280.09,0.00017786,2]
[399297471,1766254244755,-1341.0,0.00017809,2]
[399297472,1766254244765,-1341.0,0.00017839,2]
[399297473,1766254244774,-654.0,0.00017861,2]
[399297474,1766254244784,-654.0,0.00017878,2]
[399297475,1766254244793,-214.25,0.00017916,2]
[399297476,1766254244803,-151.0,0.00017997,2]
[399297477,1766254244812,-500.0,0.00017999,2]
[399297478,1766254244822,-500.0,0.00017999,2]
[399297479,1766254244831,-500.0,0.00017999,2]
[399297480,1766254244840,-500.0,0.00017999,2]
[399297481,1766254244849,-500.0,0.00017999,2]
[399297482,1766254244858,-500.0,0.00017999,2]
[399297483,1766254244867,-500.0,0.00017999,2]
[399297484,1766254244877,-500.0,0.00017999,2]
[399297485,1766254244887,-247664.17810467,0.00018,2]
[399297486,1766254244900,-335049.93050343,0.00018,2]
[399297487,1766254244909,-12332.28828938,0.00018,2]
[399297488,1766254244920,-1500.0,0.00018,2]
[399297489,1766254244930,-1613.79,0.00018,2]
[399297490,1766254244939,-8637.09131002,0.00018,7]
[399297491,1766254244949,-4198.25909512,0.00018,2]
[399297492,1766254244959,-166.66,0.00018003,2]
[399297493,1766254244969,-1000.0,0.00018082,2]
[399297494,1766254244980,-654.0,0.00018194,2]
[399297495,1766254244990,-654.0,0.00018286,2]
[399297496,1766254245000,-654.0,0.00018324,2]
[399297497,1766254245010,-654.0,0.00018327,2]
[399297498,1766254245019,-18395.32,0.00018356,2]
[399297499,1766254245029,-214.25,0.00018605,2]
[399297500,1766254245039,-166.66,0.00018664,2]
[399297501,1766254245047,-1000.0,0.0001876,2]
[399297502,1766254245057,-150.96,0.000188,2]
[399297503,1766254245066,-150.96,0.000188,2]
[399297504,1766254245075,-150.96,0.000188,2]
[399297505,1766254245084,-150.96,0.000188,2]
[399297506,1766254245094,-150.96,0.000188,2]
[399297507,1766254245103,-150.96,0.000188,2]
[399297508,1766254245112,-150.96,0.000188,2]
[399297509,1766254245121,-150.96,0.000188,2]
[399297510,1766254245131,-150.96,0.000188,2]
[399297511,1766254245140,-150.96,0.000188,2]
[399297512,1766254245149,-150.96,0.000188,2]
[399297513,1766254245159,-150.96,0.000188,2]
[399297514,1766254245168,-150.96,0.000188,2]
[399297515,1766254245177,-150.96,0.000188,2]
[399297516,1766254245186,-150.96,0.000188,2]
[399297517,1766254245195,-150.96,0.000188,2]
[399297518,1766254245205,-150.96,0.000188,2]
[399297519,1766254245214,-150.96,0.000188,2]
[399297520,1766254245223,-150.96,0.000188,2]
[399297521,1766254245232,-150.96,0.000188,2]
[399297522,1766254245242,-150.96,0.000188,2]
[399297523,1766254245252,-150.96,0.000188,2]
[399297524,1766254245261,-150.96,0.000188,2]
[399297525,1766254245270,-150.96,0.000188,2]
[399297526,1766254245279,-150.96,0.000188,2]
[399297527,1766254245288,-150.96,0.000188,2]
[399297528,1766254245297,-150.96,0.000188,2]
[399297529,1766254245306,-150.96,0.000188,2]
[399297530,1766254245315,-150.96,0.000188,2]
[399297531,1766254245324,-150.96,0.000188,2]
[399297532,1766254245333,-150.96,0.000188,2]
[399297533,1766254245343,-150.96,0.000188,2]
[399297534,1766254245351,-150.96,0.000188,2]
[399297535,1766254245360,-150.96,0.000188,2]
[399297536,1766254245369,-150.96,0.000188,2]
[399297537,1766254245378,-150.96,0.000188,2]
[399297538,1766254245390,-150.96,0.000188,2]
[399297539,1766254245399,-150.96,0.000188,2]
[399297540,1766254245408,-150.96,0.000188,2]
[399297541,1766254245418,-150.96,0.000188,2]
[399297542,1766254245427,-150.96,0.000188,2]
[399297543,1766254245436,-150.96,0.000188,2]
[399297544,1766254245445,-150.96,0.000188,2]
[399297545,1766254245454,-150.96,0.000188,2]
[399297546,1766254245463,-150.96,0.000188,2]
[399297547,1766254245473,-150.96,0.000188,2]
[399297548,1766254245482,-150.96,0.000188,2]
[399297550,1766254245491,-150.96,0.000188,2]
[399297551,1766254245500,-150.96,0.000188,2]
[399297552,1766254245509,-150.96,0.000188,2]
[399297553,1766254245518,-150.96,0.000188,2]
[399297554,1766254245527,-150.96,0.000188,2]
[399297555,1766254245536,-150.96,0.000188,2]
[399297556,1766254245545,-1600.0,0.00018809,2]
[399297557,1766254245554,-267.46074303,0.00018887,2]
[399297558,1766254245564,-322.6107,0.00018887,2]
[399297559,1766254245573,-3379.79410737,0.000189,3]
[399297560,1766254245583,-500.0,0.00018999,2]
[399297561,1766254245594,-6135.65409167,0.00019,2]
[399297562,1766254245603,-523.41758693,0.00019,2]
[399297563,1766254245613,-80103.00791952,0.00019,2]
[399297564,1766254245622,-80103.00791952,0.00019,2]
[399297565,1766254245631,-211.45739851,0.00019,2]
[399297566,1766254245640,-232.026225,0.00019,2]
[399297567,1766254245650,-300.0,0.00019,2]
[399297568,1766254245661,-151.0,0.00019,2]
[399297569,1766254245671,-8542.5,0.00019013,2]
[399297570,1766254245681,-186.73,0.00019065,2]
[399297571,1766254245690,-151.0,0.00019178,2]
[399297572,1766254245699,-802.0,0.00019178,2]
[399297573,1766254245709,-151.0,0.00019178,2]
[399297574,1766254245719,-151.0,0.00019178,2]
[399297575,1766254245727,-151.0,0.00019178,2]
[399297576,1766254245738,-616.35544401,0.000192,2]
[399297577,1766254245748,-1799.823201,0.00019207,2]
[399297578,1766254245758,-151.0,0.00019207,2]
[399297579,1766254245769,-151.0,0.00019207,2]
[399297580,1766254245778,-151.0,0.00019207,2]
[399297581,1766254245790,-151.0,0.00019207,2]
[399297582,1766254245800,-82396.740676,0.00019231,2]
[399297583,1766254245809,-20067.05381,0.00019231,2]
[399297584,1766254245818,-21241.2626764,0.00019231,2]
[399297585,1766254245827,-326.287178,0.00019231,2]
[399297586,1766254245836,-326.287178,0.00019231,2]
[399297587,1766254245845,-326.287178,0.00019231,2]
[399297588,1766254245854,-326.287178,0.00019231,2]
[399297589,1766254245863,-1326.0,0.00019328,2]
[399297590,1766254245872,-612.0,0.00019328,2]
[399297591,1766254245881,-1608.0,0.00019328,2]
[399297592,1766254245893,-3455.0,0.00019328,2]
[399297593,1766254245902,-1262.0,0.00019328,2]
[399297594,1766254245911,-518.0,0.00019328,2]
[399297595,1766254245921,-1197.0,0.00019328,2]
[399297596,1766254245932,-911.0,0.00019328,2]
[399297597,1766254245942,-422.533,0.00019328,2]
[399297598,1766254245951,-2428.0,0.00019328,2]
[399297600,1766254245960,-564.0,0.00019328,2]
[399297601,1766254245970,-186.73,0.0001936,2]
[399297603,1766254245979,-1000.0,0.00019438,2]
[399297604,1766254245988,-1000.0,0.00019594,2]
[399297605,1766254245999,-401.594839,0.00019699,2]
[399297606,1766254246008,-18385.1979427,0.00019729,2]
[399297607,1766254246017,-4477.5649303,0.00019729,2]
[399297608,1766254246026,-4739.5663427,0.00019729,2]
[399297609,1766254246036,-153.20553774,0.00019845,2]
[399297610,1766254246045,-1171.64256301,0.0001995,15]
[399297611,1766254246054,-500.0,0.00019999,2]
[399297612,1766254246063,-646.71552925,0.00019999,2]
[399297613,1766254246072,-500.0,0.00019999,2]
[399297614,1766254246080,-500.0,0.00019999,2]
[399297615,1766254246090,-7477.31551512,0.0002,2]
[399297616,1766254246101,-235182.76061792,0.0002,2]
[399297617,1766254246112,-505.2430195,0.0002,2]
[399297618,1766254246121,-590.12475887,0.0002,2]
[399297619,1766254246131,-300.0,0.0002,2]
[399297620,1766254246142,-150.0,0.0002,2]
[399297621,1766254246152,-150.0,0.0002,2]